fUSD/lending_fUSD_20260527
["ID","MTS","AMOUNT","RATE_DAILY","PERIOD"]
[423096220,1779841846000,-150.0,0.00036728,7]
[423096221,1779841846000,-330.54591387,0.00036739,7]
[423096226,1779841846000,-330.54591387,0.00036777,7]
[423096231,1779841846000,-150.0,0.00036846,7]
[423096230,1779841846000,-330.54591387,0.00036815,7]
[423096222,1779841846000,-150.0,0.00036745,7]
[423096227,1779841846000,-11550.31896507,0.00036782,2]
[423096224,1779841846000,-150.0,0.00036777,30]
[423096229,1779841846000,-150.0,0.000368,7]
[423096228,1779841846000,-150.0,0.00036794,7]
[423096223,1779841846000,-151.87,0.00036762,60]
[423096225,1779841846000,-150.0,0.00036777,7]
[423096236,1779841846000,-150.0,0.00036886,7]
[423096232,1779841846000,-330.54591387,0.00036853,7]
[423096245,1779841846000,-330.54591387,0.00036968,7]
[423096244,1779841846000,-1481.133072,0.00036968,2]
[423096271,1779841846000,-150.0,0.00037178,7]
[423096214,1779841846000,-202.6162,0.00036682,21]
[423096260,1779841846000,-549.28865875,0.000371,30]
[423096306,1779841846000,-150.0,0.00037443,60]
[423096305,1779841846000,-150.0,0.00037439,7]
[423096309,1779841846000,-150.0,0.00037454,7]
[423096308,1779841846000,-159.16,0.0003745,60]
[423096304,1779841846000,-330.54591387,0.00037426,7]
[423096303,1779841846000,-5000.0,0.0003741,2]
[423096307,1779841846000,-400.0,0.00037449,2]
[423096314,1779841846000,-1000.0,0.000375,120]
[423096324,1779841846000,-150.0,0.00037572,7]
[423096325,1779841846000,-150.0,0.00037579,30]
[423096313,1779841846000,-330.54591387,0.00037465,7]
[423096321,1779841846000,-150.0,0.00037556,7]
[423096326,1779841846000,-330.54591387,0.00037579,7]
[423096315,1779841846000,-1007.76585253,0.000375,120]
[423096302,1779841846000,-8380.58896472,0.0003741,2]
[423096318,1779841846000,-150.0,0.00037533,7]
[423096327,1779841846000,-500.0,0.00037599,120]
[423096316,1779841846000,-330.54591387,0.00037503,7]
[423096317,1779841846000,-150.0,0.00037532,7]
[423096323,1779841846000,-151.87,0.00037562,60]
[423096328,1779841846000,-500.0,0.00037599,120]
[423096330,1779841846000,-500.0,0.00037599,30]
[423096332,1779841846000,-1864.47,0.00037599,2]
[423096333,1779841846000,-500.0,0.00037599,120]
[423096339,1779841846000,-470.94830105,0.00037615,2]
[423096337,1779841846000,-131411.0,0.000376,30]
[423096335,1779841846000,-591.4136804,0.00037599,120]
[423096338,1779841846000,-150.0,0.00037602,7]
[423096336,1779841846000,-500.0,0.00037599,7]
[423096264,1779841846000,-150.0,0.00037121,7]
[423096319,1779841846000,-330.54591387,0.00037541,7]
[423096312,1779841846000,-150.0,0.00037465,7]
[423096334,1779841846000,-500.0,0.00037599,120]
[423096299,1779841846000,-151.87,0.00037362,60]
[423096311,1779841846000,-150.0,0.00037465,30]
[423096272,1779841846000,-150.0,0.0003719,7]
[423096282,1779841846000,-199.97,0.0003724,120]
[423096273,1779841846000,-330.54591387,0.00037197,7]
[423096275,1779841846000,-151.0,0.00037233,7]
[423096278,1779841846000,-151.0,0.00037233,7]
[423096274,1779841846000,-150.0,0.00037217,7]
[423096277,1779841846000,-151.0,0.00037233,7]
[423096281,1779841846000,-330.54591387,0.00037235,7]
[423096276,1779841846000,-151.0,0.00037233,7]
[423096280,1779841846000,-150.0,0.00037235,30]
[423096285,1779841846000,-150.0,0.00037255,7]
[423096284,1779841846000,-177.18949819,0.00037242,7]
[423096283,1779841846000,-199.97,0.0003724,120]
[423096287,1779841846000,-252.0,0.0003726,30]
[423096279,1779841846000,-222.05893029,0.00037233,2]
[423096297,1779841846000,-150.0,0.0003735,30]
[423096291,1779841846000,-150.0,0.00037304,7]
[423096300,1779841846000,-330.54591387,0.00037388,7]
[423096294,1779841846000,-150.0,0.00037327,7]
[423096293,1779841846000,-9904.6097,0.00037324,2]
[423096296,1779841846000,-150.0,0.00037347,7]
[423096290,1779841846000,-330.54591387,0.00037274,7]
[423096310,1779841846000,-151.87,0.00037462,60]
[423096292,1779841846000,-330.54591387,0.00037312,7]
[423096289,1779841846000,-150.0,0.00037268,7]
[423096295,1779841846000,-150.0,0.00037336,7]
[423096298,1779841846000,-330.54591387,0.0003735,7]
[423096301,1779841846000,-150.0,0.00037396,7]
[423096286,1779841846000,-150.0,0.00037258,7]
[423096288,1779841846000,-151.87,0.00037262,60]
[423096380,1779841847000,-500.0,0.000378,2]
[423096374,1779841847000,-500.0,0.000378,2]
[423096383,1779841847000,-500.0,0.000378,2]
[423096382,1779841847000,-841.44,0.000378,2]
[423096373,1779841847000,-500.0,0.000378,2]
[423096377,1779841847000,-500.0,0.000378,2]
[423096376,1779841847000,-500.0,0.000378,2]
[423096379,1779841847000,-500.0,0.000378,2]
[423096378,1779841847000,-500.0,0.000378,2]
[423096375,1779841847000,-500.0,0.000378,2]
[423096371,1779841847000,-500.0,0.000378,2]
[423096384,1779841847000,-500.0,0.000378,2]
[423096396,1779841847000,-500.0,0.00037807,120]
[423096388,1779841847000,-500.0,0.000378,2]
[423096387,1779841847000,-500.0,0.000378,2]
[423096385,1779841847000,-500.0,0.000378,2]
[423096386,1779841847000,-500.0,0.000378,2]
[423096393,1779841847000,-1097.29439826,0.00037807,30]
[423096394,1779841847000,-500.0,0.00037807,120]
[423096390,1779841847000,-500.0,0.000378,2]
[423096389,1779841847000,-500.0,0.000378,2]
[423096391,1779841847000,-560.96,0.000378,2]
[423096395,1779841847000,-500.0,0.00037807,120]
[423096372,1779841847000,-500.0,0.000378,2]
[423096392,1779841847000,-1400.0,0.000378,13]
[423096381,1779841847000,-500.0,0.000378,2]
[423096370,1779841847000,-500.0,0.000378,2]
[423096351,1779841847000,-2405.59468701,0.000377,2]
[423096365,1779841847000,-151.87,0.00037762,60]
[423096398,1779841847000,-500.0,0.00037807,120]
[423096341,1779841847000,-150.0,0.00037624,7]
[423096340,1779841847000,-330.54591387,0.00037617,7]
[423096343,1779841847000,-330.54591387,0.00037655,7]
[423096345,1779841847000,-150.79,0.0003766,60]
[423096347,1779841847000,-150.0,0.00037671,7]
[423096348,1779841847000,-150.0,0.0003769,7]
[423096357,1779841847000,-300.0,0.0003776,60]
[423096356,1779841847000,-11550.31896507,0.00037746,2]
[423096346,1779841847000,-151.87,0.00037662,60]
[423096352,1779841847000,-200.0,0.0003771,30]
[423096350,1779841847000,-150.0,0.00037694,30]
[423096364,1779841847000,-150.79,0.0003776,60]
[423096349,1779841847000,-330.54591387,0.00037694,7]
[423096355,1779841847000,-150.0,0.00037739,7]
[423096354,1779841847000,-330.54591387,0.00037732,7]
[423096362,1779841847000,-395.0,0.0003776,60]
[423096363,1779841847000,-239.0,0.0003776,60]
[423096360,1779841847000,-500.0,0.0003776,60]
[423096361,1779841847000,-500.0,0.0003776,60]
[423096369,1779841847000,-199.0,0.00037781,120]
[423096358,1779841847000,-300.0,0.0003776,60]
[423096359,1779841847000,-158.0,0.0003776,60]
[423096366,1779841847000,-330.54591387,0.0003777,7]
[423096367,1779841847000,-200.0,0.00037781,120]
[423096368,1779841847000,-200.0,0.00037781,120]
[423096353,1779841847000,-150.0,0.00037716,7]
[423096402,1779841847000,-1864.47,0.00037807,2]
[423096403,1779841847000,-1864.47,0.00037807,2]
[423096400,1779841847000,-500.0,0.00037807,30]
[423096431,1779841847000,-151.0,0.00037808,7]
[423096432,1779841847000,-151.0,0.00037808,7]
[423096430,1779841847000,-151.0,0.00037808,7]
[423096429,1779841847000,-216.990106,0.00037808,7]
[423096433,1779841847000,-151.0,0.00037808,7]
[423096436,1779841847000,-151.0,0.00037808,7]
[423096437,1779841847000,-151.0,0.00037808,7]
[423096438,1779841847000,-151.0,0.00037808,7]
[423096440,1779841847000,-151.0,0.00037808,7]
[423096442,1779841847000,-151.0,0.00037808,7]
[423096441,1779841847000,-151.0,0.00037808,7]
[423096443,1779841847000,-215.42664,0.00037808,7]
[423096434,1779841847000,-151.0,0.00037808,7]
[423096439,1779841847000,-151.0,0.00037808,7]
[423096444,1779841847000,-151.0,0.00037808,7]
[423096447,1779841847000,-151.0,0.00037808,7]
[423096445,1779841847000,-151.0,0.00037808,7]
[423096446,1779841847000,-151.0,0.00037808,7]
[423096450,1779841847000,-151.0,0.00037808,7]
[423096449,1779841847000,-151.0,0.00037808,7]
[423096451,1779841847000,-151.0,0.00037808,7]
[423096452,1779841847000,-232.081505,0.00037808,7]
[423096455,1779841847000,-151.0,0.00037808,7]
[423096453,1779841847000,-151.0,0.00037808,7]
[423096454,1779841847000,-151.0,0.00037808,7]
[423096405,1779841847000,-500.0,0.00037807,120]
[423096448,1779841847000,-151.0,0.00037808,7]
[423096426,1779841847000,-151.0,0.00037808,7]
[423096456,1779841847000,-151.0,0.00037808,7]
[423096427,1779841847000,-211.521962,0.00037808,7]
[423096424,1779841847000,-151.0,0.00037808,7]
[423096406,1779841847000,-150.0,0.00037807,120]
[423096397,1779841847000,-500.0,0.00037807,120]
[423096401,1779841847000,-371.75717604,0.00037807,30]
[423096408,1779841847000,-239.76,0.00037807,7]
[423096409,1779841847000,-1200.0,0.00037807,120]
[423096407,1779841847000,-500.0,0.00037807,120]
[423096399,1779841847000,-512.88515102,0.00037807,120]
[423096410,1779841847000,-1200.0,0.00037807,120]
[423096423,1779841847000,-164.487155,0.00037808,7]
[423096412,1779841847000,-300.0,0.00037807,10]
[423096421,1779841847000,-178.12691507,0.00037808,7]
[423096404,1779841847000,-500.0,0.00037807,120]
[423096422,1779841847000,-330.54591387,0.00037808,7]
[423096411,1779841847000,-1087.0,0.00037807,120]
[423096428,1779841847000,-151.0,0.00037808,7]
[423096435,1779841847000,-151.0,0.00037808,7]
[423096425,1779841847000,-151.0,0.00037808,7]
[423096419,1779841847000,-272.56195256,0.00037808,7]
[423096416,1779841847000,-221.86736761,0.00037808,7]
[423096414,1779841847000,-151.84452449,0.00037808,7]
[423096417,1779841847000,-235.03589208,0.00037808,7]
[423096415,1779841847000,-152.26114238,0.00037808,7]
[423096413,1779841847000,-249.71486509,0.00037808,30]
[423096420,1779841847000,-259.07475596,0.00037808,7]
[423096418,1779841847000,-152.37696106,0.00037808,7]
[423096495,1779841848000,-151.0,0.00037808,7]
[423096498,1779841848000,-151.0,0.00037808,7]
[423096492,1779841848000,-151.0,0.00037808,7]
[423096493,1779841848000,-151.0,0.00037808,7]
[423096490,1779841848000,-151.0,0.00037808,7]
[423096494,1779841848000,-151.0,0.00037808,7]
[423096485,1779841848000,-151.0,0.00037808,7]
[423096489,1779841848000,-275.604903,0.00037808,7]
[423096508,1779841848000,-151.0,0.00037808,7]
[423096488,1779841848000,-151.0,0.00037808,7]
[423096496,1779841848000,-176.848158,0.00037808,7]
[423096497,1779841848000,-151.0,0.00037808,7]
[423096507,1779841848000,-151.0,0.00037808,7]
[423096502,1779841848000,-185.634401,0.00037808,7]
[423096503,1779841848000,-151.0,0.00037808,7]
[423096501,1779841848000,-193.186969,0.00037808,7]
[423096500,1779841848000,-178.84402325,0.00037808,7]
[423096505,1779841848000,-151.0,0.00037808,7]
[423096504,1779841848000,-151.0,0.00037808,7]
[423096506,1779841848000,-215.416319,0.00037808,7]
[423096509,1779841848000,-151.0,0.00037808,7]
[423096511,1779841848000,-151.0,0.00037808,7]
[423096520,1779841848000,-151.0,0.00037808,7]
[423096491,1779841848000,-151.0,0.00037808,7]
[423096517,1779841848000,-151.0,0.00037808,7]
[423096519,1779841848000,-229.778752,0.00037808,7]
[423096499,1779841848000,-151.0,0.00037808,7]
[423096487,1779841848000,-151.0,0.00037808,7]
[423096483,1779841848000,-292.628545,0.00037808,7]
[423096484,1779841848000,-151.0,0.00037808,7]
[423096516,1779841848000,-151.0,0.00037808,7]
[423096460,1779841848000,-151.0,0.00037808,7]
[423096458,1779841848000,-259.24939,0.00037808,7]
[423096457,1779841848000,-151.0,0.00037808,7]
[423096459,1779841848000,-151.0,0.00037808,7]
[423096461,1779841848000,-151.0,0.00037808,7]
[423096463,1779841848000,-151.0,0.00037808,7]
[423096462,1779841848000,-151.0,0.00037808,7]
[423096464,1779841848000,-151.0,0.00037808,7]
[423096467,1779841848000,-151.0,0.00037808,7]
[423096466,1779841848000,-176.908747,0.00037808,7]
[423096468,1779841848000,-151.0,0.00037808,7]
[423096471,1779841848000,-151.0,0.00037808,7]
[423096465,1779841848000,-151.0,0.00037808,7]
[423096469,1779841848000,-151.0,0.00037808,7]
[423096470,1779841848000,-151.0,0.00037808,7]
[423096473,1779841848000,-151.0,0.00037808,7]
[423096472,1779841848000,-151.0,0.00037808,7]
[423096478,1779841848000,-151.0,0.00037808,7]
[423096474,1779841848000,-171.934412,0.00037808,7]
[423096476,1779841848000,-151.0,0.00037808,7]
[423096477,1779841848000,-151.0,0.00037808,7]
[423096475,1779841848000,-151.0,0.00037808,7]
[423096479,1779841848000,-151.0,0.00037808,7]
[423096482,1779841848000,-151.0,0.00037808,7]
[423096480,1779841848000,-151.0,0.00037808,7]
[423096481,1779841848000,-151.0,0.00037808,7]
[423096486,1779841848000,-176.8506,0.00037808,7]
[423096521,1779841848000,-151.0,0.00037808,7]
[423096573,1779841848000,-172.296715,0.00037808,7]
[423096510,1779841848000,-191.194413,0.00037808,7]
[423096547,1779841848000,-151.0,0.00037808,7]
[423096551,1779841848000,-151.0,0.00037808,7]
[423096555,1779841848000,-162.149126,0.00037808,7]
[423096550,1779841848000,-151.0,0.00037808,7]
[423096552,1779841848000,-172.296715,0.00037808,7]
[423096549,1779841848000,-1076.450634,0.00037808,7]
[423096554,1779841848000,-151.0,0.00037808,7]
[423096553,1779841848000,-1076.450634,0.00037808,7]
[423096558,1779841848000,-172.296715,0.00037808,7]
[423096557,1779841848000,-1076.450634,0.00037808,7]
[423096561,1779841848000,-1076.450634,0.00037808,7]
[423096564,1779841848000,-172.296715,0.00037808,7]
[423096548,1779841848000,-172.296715,0.00037808,7]
[423096566,1779841848000,-172.296715,0.00037808,7]
[423096563,1779841848000,-1076.450634,0.00037808,7]
[423096567,1779841848000,-229.751202,0.00037808,7]
[423096562,1779841848000,-172.296715,0.00037808,7]
[423096565,1779841848000,-1076.450634,0.00037808,7]
[423096569,1779841848000,-172.296715,0.00037808,7]
[423096572,1779841848000,-1076.450626,0.00037808,7]
[423096570,1779841848000,-1076.450634,0.00037808,7]
[423096575,1779841848000,-347.61492,0.00037808,7]
[423096571,1779841848000,-172.296715,0.00037808,7]
[423096568,1779841848000,-1076.450634,0.00037808,7]
[423096574,1779841848000,-172.296715,0.00037808,7]
[423096518,1779841848000,-151.0,0.00037808,7]
[423096559,1779841848000,-1076.450634,0.00037808,7]
[423096545,1779841848000,-1076.450634,0.00037808,7]
[423096560,1779841848000,-172.296715,0.00037808,7]
[423096546,1779841848000,-151.0,0.00037808,7]
[423096512,1779841848000,-151.0,0.00037808,7]
[423096556,1779841848000,-172.296715,0.00037808,7]
[423096515,1779841848000,-151.0,0.00037808,7]
[423096514,1779841848000,-151.0,0.00037808,7]
[423096513,1779841848000,-151.0,0.00037808,7]
[423096524,1779841848000,-1076.450634,0.00037808,7]
[423096523,1779841848000,-151.0,0.00037808,7]
[423096522,1779841848000,-288.75517,0.00037808,7]
[423096526,1779841848000,-1076.450634,0.00037808,7]
[423096527,1779841848000,-151.0,0.00037808,7]
[423096530,1779841848000,-220.276519,0.00037808,7]
[423096529,1779841848000,-1076.450634,0.00037808,7]
[423096528,1779841848000,-1076.450634,0.00037808,7]
[423096531,1779841848000,-1076.450634,0.00037808,7]
[423096525,1779841848000,-151.0,0.00037808,7]
[423096532,1779841848000,-1076.450634,0.00037808,7]
[423096539,1779841848000,-151.0,0.00037808,7]
[423096540,1779841848000,-172.296715,0.00037808,7]
[423096543,1779841848000,-151.0,0.00037808,7]
[423096542,1779841848000,-151.0,0.00037808,7]
[423096538,1779841848000,-151.0,0.00037808,7]
[423096537,1779841848000,-1076.450634,0.00037808,7]
[423096541,1779841848000,-1076.450634,0.00037808,7]
[423096544,1779841848000,-172.296715,0.00037808,7]
[423096535,1779841848000,-151.0,0.00037808,7]
[423096534,1779841848000,-151.0,0.00037808,7]
[423096533,1779841848000,-1076.450634,0.00037808,7]
[423096536,1779841848000,-172.296715,0.00037808,7]
[423096622,1779841849000,-151.0,0.00037808,7]
[423096620,1779841849000,-178.286066,0.00037808,7]
[423096631,1779841849000,-322.593945,0.00037808,7]
[423096618,1779841849000,-213.728265,0.00037808,7]
[423096617,1779841849000,-151.0,0.00037808,7]
[423096613,1779841849000,-151.0,0.00037808,7]
[423096614,1779841849000,-1664.813739,0.00037808,7]
[423096615,1779841849000,-322.593945,0.00037808,7]
[423096612,1779841849000,-1664.813739,0.00037808,7]
[423096611,1779841849000,-322.593945,0.00037808,7]
[423096610,1779841849000,-151.0,0.00037808,7]
[423096609,1779841849000,-322.593945,0.00037808,7]
[423096616,1779841849000,-1664.813739,0.00037808,7]
[423096630,1779841849000,-1664.813739,0.00037808,7]
[423096636,1779841849000,-558.00197,0.00037808,7]
[423096621,1779841849000,-1664.813739,0.00037808,7]
[423096623,1779841849000,-322.593945,0.00037808,7]
[423096629,1779841849000,-322.593945,0.00037808,7]
[423096624,1779841849000,-1664.813739,0.00037808,7]
[423096625,1779841849000,-151.0,0.00037808,7]
[423096628,1779841849000,-151.0,0.00037808,7]
[423096627,1779841849000,-1664.813739,0.00037808,7]
[423096626,1779841849000,-322.593945,0.00037808,7]
[423096632,1779841849000,-151.0,0.00037808,7]
[423096635,1779841849000,-322.593945,0.00037808,7]
[423096637,1779841849000,-151.0,0.00037808,7]
[423096634,1779841849000,-1664.813739,0.00037808,7]
[423096633,1779841849000,-558.00197,0.00037808,7]
[423096608,1779841849000,-151.0,0.00037808,7]
[423096619,1779841849000,-322.593945,0.00037808,7]
[423096607,1779841849000,-322.593945,0.00037808,7]
[423096576,1779841849000,-172.296715,0.00037808,7]
[423096596,1779841849000,-250.63306134,0.00037808,7]
[423096640,1779841849000,-558.00197,0.00037808,7]
[423096579,1779841849000,-347.61492,0.00037808,7]
[423096580,1779841849000,-172.296715,0.00037808,7]
[423096577,1779841849000,-347.61492,0.00037808,7]
[423096578,1779841849000,-172.296715,0.00037808,7]
[423096581,1779841849000,-347.61492,0.00037808,7]
[423096592,1779841849000,-347.61492,0.00037808,7]
[423096583,1779841849000,-347.61492,0.00037808,7]
[423096584,1779841849000,-347.61492,0.00037808,7]
[423096585,1779841849000,-172.296719,0.00037808,7]
[423096582,1779841849000,-172.296715,0.00037808,7]
[423096589,1779841849000,-347.61492,0.00037808,7]
[423096591,1779841849000,-151.0,0.00037808,7]
[423096586,1779841849000,-347.61492,0.00037808,7]
[423096587,1779841849000,-347.61492,0.00037808,7]
[423096588,1779841849000,-151.0,0.00037808,7]
[423096590,1779841849000,-151.0,0.00037808,7]
[423096594,1779841849000,-151.0,0.00037808,7]
[423096604,1779841849000,-347.61492,0.00037808,7]
[423096593,1779841849000,-347.61492,0.00037808,7]
[423096605,1779841849000,-151.0,0.00037808,7]
[423096597,1779841849000,-347.61492,0.00037808,7]
[423096595,1779841849000,-347.61492,0.00037808,7]
[423096601,1779841849000,-347.61492,0.00037808,7]
[423096598,1779841849000,-347.61492,0.00037808,7]
[423096603,1779841849000,-347.61492,0.00037808,7]
[423096599,1779841849000,-347.61492,0.00037808,7]
[423096600,1779841849000,-347.61492,0.00037808,7]
[423096602,1779841849000,-347.61492,0.00037808,7]
[423096606,1779841849000,-192.969407,0.00037808,7]
[423096639,1779841849000,-322.593945,0.00037808,7]
[423096645,1779841849000,-151.0,0.00037808,7]
[423096642,1779841849000,-1664.813739,0.00037808,7]
[423096683,1779841849000,-151.0,0.00037808,7]
[423096675,1779841849000,-558.00197,0.00037808,7]
[423096678,1779841849000,-558.00197,0.00037808,7]
[423096677,1779841849000,-151.0,0.00037808,7]
[423096680,1779841849000,-558.00197,0.00037808,7]
[423096676,1779841849000,-558.00197,0.00037808,7]
[423096674,1779841849000,-1664.813743,0.00037808,7]
[423096682,1779841849000,-558.00197,0.00037808,7]
[423096679,1779841849000,-151.0,0.00037808,7]
[423096681,1779841849000,-151.0,0.00037808,7]
[423096685,1779841849000,-212.608029,0.00037808,7]
[423096689,1779841849000,-151.0,0.00037808,7]
[423096696,1779841849000,-151.0,0.00037808,7]
[423096688,1779841849000,-151.0,0.00037808,7]
[423096697,1779841849000,-151.0,0.00037808,7]
[423096686,1779841849000,-151.0,0.00037808,7]
[423096687,1779841849000,-151.0,0.00037808,7]
[423096691,1779841849000,-151.0,0.00037808,7]
[423096690,1779841849000,-151.0,0.00037808,7]
[423096694,1779841849000,-151.0,0.00037808,7]
[423096692,1779841849000,-200.536851,0.00037808,7]
[423096693,1779841849000,-285.69292,0.00037808,7]
[423096695,1779841849000,-151.0,0.00037808,7]
[423096699,1779841849000,-159.306629,0.00037808,7]
[423096698,1779841849000,-151.0,0.00037808,7]
[423096703,1779841849000,-151.0,0.00037808,7]
[423096700,1779841849000,-258.86278,0.00037808,7]
[423096701,1779841849000,-151.0,0.00037808,7]
[423096638,1779841849000,-1664.813739,0.00037808,7]
[423096672,1779841849000,-173.868669,0.00037808,7]
[423096684,1779841849000,-558.001978,0.00037808,7]
[423096702,1779841849000,-151.0,0.00037808,7]
[423096668,1779841849000,-322.593945,0.00037808,7]
[423096673,1779841849000,-558.00197,0.00037808,7]
[423096643,1779841849000,-322.593945,0.00037808,7]
[423096704,1779841849000,-213.755782,0.00037808,7]
[423096644,1779841849000,-558.00197,0.00037808,7]
[423096647,1779841849000,-558.00197,0.00037808,7]
[423096657,1779841849000,-322.593945,0.00037808,7]
[423096659,1779841849000,-558.00197,0.00037808,7]
[423096658,1779841849000,-1664.813739,0.00037808,7]
[423096646,1779841849000,-1664.813739,0.00037808,7]
[423096648,1779841849000,-322.593945,0.00037808,7]
[423096653,1779841849000,-558.00197,0.00037808,7]
[423096650,1779841849000,-1664.813739,0.00037808,7]
[423096651,1779841849000,-322.593945,0.00037808,7]
[423096649,1779841849000,-558.00197,0.00037808,7]
[423096641,1779841849000,-151.0,0.00037808,7]
[423096654,1779841849000,-322.593945,0.00037808,7]
[423096655,1779841849000,-1664.813739,0.00037808,7]
[423096666,1779841849000,-558.00197,0.00037808,7]
[423096669,1779841849000,-558.00197,0.00037808,7]
[423096664,1779841849000,-1664.813739,0.00037808,7]
[423096665,1779841849000,-322.593945,0.00037808,7]
[423096670,1779841849000,-1664.813739,0.00037808,7]
[423096661,1779841849000,-558.00197,0.00037808,7]
[423096663,1779841849000,-558.00197,0.00037808,7]
[423096656,1779841849000,-558.00197,0.00037808,7]
[423096671,1779841849000,-322.593945,0.00037808,7]
[423096652,1779841849000,-1664.813739,0.00037808,7]
[423096667,1779841849000,-1664.813739,0.00037808,7]
[423096660,1779841849000,-322.593945,0.00037808,7]
[423096662,1779841849000,-1664.813739,0.00037808,7]
[423096742,1779841850000,-1475.143862,0.00037808,7]
[423096731,1779841850000,-2090.599571,0.00037808,7]
[423096738,1779841850000,-2090.599575,0.00037808,7]
[423096734,1779841850000,-2090.599571,0.00037808,7]
[423096749,1779841850000,-1475.143862,0.00037808,7]
[423096739,1779841850000,-1475.143862,0.00037808,7]
[423096737,1779841850000,-1475.143862,0.00037808,7]
[423096741,1779841850000,-1475.143862,0.00037808,7]
[423096743,1779841850000,-1475.143862,0.00037808,7]
[423096740,1779841850000,-1475.143862,0.00037808,7]
[423096729,1779841850000,-2090.599571,0.00037808,7]
[423096748,1779841850000,-1475.143862,0.00037808,7]
[423096754,1779841850000,-1475.143862,0.00037808,7]
[423096746,1779841850000,-1475.143862,0.00037808,7]
[423096747,1779841850000,-1475.143862,0.00037808,7]
[423096744,1779841850000,-1475.143862,0.00037808,7]
[423096752,1779841850000,-1475.143862,0.00037808,7]
[423096750,1779841850000,-1475.143862,0.00037808,7]
[423096753,1779841850000,-1475.143862,0.00037808,7]
[423096759,1779841850000,-1752.888363,0.00037808,7]
[423096751,1779841850000,-1475.143862,0.00037808,7]
[423096755,1779841850000,-1475.143858,0.00037808,7]
[423096735,1779841850000,-1475.143862,0.00037808,7]
[423096756,1779841850000,-1752.888363,0.00037808,7]
[423096745,1779841850000,-1475.143862,0.00037808,7]
[423096733,1779841850000,-1475.143862,0.00037808,7]
[423096712,1779841850000,-151.0,0.00037808,7]
[423096732,1779841850000,-2090.599571,0.00037808,7]
[423096761,1779841850000,-1752.888363,0.00037808,7]
[423096705,1779841850000,-151.0,0.00037808,7]
[423096707,1779841850000,-151.0,0.00037808,7]
[423096706,1779841850000,-151.0,0.00037808,7]
[423096709,1779841850000,-151.0,0.00037808,7]
[423096710,1779841850000,-151.0,0.00037808,7]
[423096708,1779841850000,-151.0,0.00037808,7]
[423096711,1779841850000,-151.0,0.00037808,7]
[423096715,1779841850000,-221.277337,0.00037808,7]
[423096723,1779841850000,-2090.599571,0.00037808,7]
[423096724,1779841850000,-2090.599571,0.00037808,7]
[423096713,1779841850000,-287.029757,0.00037808,7]
[423096714,1779841850000,-151.0,0.00037808,7]
[423096716,1779841850000,-2090.599571,0.00037808,7]
[423096718,1779841850000,-2090.599571,0.00037808,7]
[423096720,1779841850000,-2090.599571,0.00037808,7]
[423096719,1779841850000,-2090.599571,0.00037808,7]
[423096717,1779841850000,-2090.599571,0.00037808,7]
[423096722,1779841850000,-2090.599571,0.00037808,7]
[423096721,1779841850000,-2090.599571,0.00037808,7]
[423096725,1779841850000,-2090.599571,0.00037808,7]
[423096727,1779841850000,-2090.599571,0.00037808,7]
[423096736,1779841850000,-2090.599571,0.00037808,7]
[423096726,1779841850000,-2090.599571,0.00037808,7]
[423096730,1779841850000,-2090.599571,0.00037808,7]